[Event "Czech Youth U16 Boys 2024"]
[Site "Kouty nad Desnou"]
[Date "2024.03.12"]
[Round "5.2"]
[White "Fizer, Marek"]
[Black "Juhanak, Daniel"]
[Result "1/2-1/2"]
[ECO "C11"]
[WhiteElo "2058"]
[BlackElo "2005"]
[Annotator "RC"]
[PlyCount "165"]
[EventDate "2024.03.10"]
[EventType "swiss"]
[EventCountry "CZE"]
[SourceTitle "playchess.com"]
[Source "ChessBase"]
[SourceQuality "1"]
[TimeControl "40/5400+30:1800+30"]

1. e4 {[%emt 0:00:20]} e6 {[%emt 0:00:19]} 2. d4 {[%emt 0:00:10]} d5 {[%emt 0:00:07]} 3. Nc3 {[%emt 0:00:15]} Nf6 {[%emt 0:00:25]} 4. Bg5 {[%emt 0:00:21]} dxe4 {[%emt 0:00:39]} 5. Nxe4 {[%emt 0:00:11]} Be7 {[%emt 0:00:12]} 6. Nxf6+ {[%emt 0:00:45]} Bxf6 {[%emt 0:00:30]} 7. Bxf6 {[%emt 0:00:18]} Qxf6 {[%emt 0:00:15]} 8. Nf3 {[%emt 0:01:03]} O-O {[%emt 0:01:20]} 9. Qd3 {[%emt 0:01:19]} Nc6 {[%emt 0:16:56]} 10. Qe4 {[%emt 0:03:40]} Qg6 {[%emt 0:06:27]} 11. Qxg6 {[%emt 0:04:38]} hxg6 {[%emt 0:00:17]} 12. Bb5 {[%emt 0:03:36]} Nb4 {[%emt 0:03:35]} 13. Ba4 {[%emt 0:10:52]} b5 {[%emt 0:03:32]} 14. a3 {[%emt 0:09:19]} a5 {[%emt 0:03:27]} 15. Bb3 {[%emt 0:01:34]} Na6 {[%emt 0:02:02]} 16. a4 {[%emt 0:04:46]} b4 {[%emt 0:01:45]} 17. O-O {[%emt 0:10:48]} Bb7 {[%emt 0:04:56]} 18. Ne5 {[%emt 0:02:33]} Rfd8 {[%emt 0:00:57]} 19. Rad1 {[%emt 0:05:25]} Nb8 {[%emt 0:06:29]} 20. f4 {[%emt 0:06:45]} Nc6 {[%emt 0:02:24]} 21. c3 {[%emt 0:06:09]} Rab8 {[%emt 0:05:31]} 22. Nd3 {[%emt 0:07:51]} bxc3 {[%emt 0:10:06]} 23. bxc3 {[%emt 0:00:24]} Ba6 {[%emt 0:00:26]} 24. Bc2 {[%emt 0:00:43]} Ne7 {[%emt 0:01:14]} 25. Rfe1 {[%emt 0:08:00]} Bxd3 {[%emt 0:01:06]} 26. Rxd3 {[%emt 0:01:13]} Rb2 {[%emt 0:03:59]} 27. Rc1 {[%emt 0:04:37]} Nd5 {[%emt 0:02:56]} 28. Rf3 {[%emt 0:01:35]} Rdb8 {[%emt 0:02:57]} 29. Be4 {[%emt 0:01:48]} Ra2 {[%emt 0:05:04]} 30. Rf2 {[%emt 0:01:22]} Rxa4 {[%emt 0:05:27]} 31. Bxd5 {[%emt 0:01:17]} exd5 {[%emt 0:00:08]} 32. Re2 {[%emt 0:00:52]} Rc4 {[%emt 0:01:27]} 33. Re5 {[%emt 0:01:27]} c6 {[%emt 0:00:24]} 34. Re7 {[%emt 0:00:30]} c5 {[%emt 0:01:51]} 35. dxc5 {[%emt 0:00:40]} Rxc5 {[%emt 0:00:07]} 36. Ra7 {[%emt 0:00:14]} Rbc8 {[%emt 0:05:58]} 37. Re1 {[%emt 0:00:48]} Rxc3 {[%emt 0:02:50]} 38. Ree7 {[%emt 0:00:44]} Ra3 {[%emt 0:00:40]} 39. h3 {[%emt 0:00:27]} Rf8 {[%emt 0:00:27]} 40. Red7 {[%emt 0:00:23]} Ra4 {[%emt 0:00:38]} 41. Rxd5 {[%emt 0:03:19]} Rxf4 {[%emt 0:00:51]} 42. Raxa5 {[%emt 0:00:24]} Re8 {[%emt 0:01:05]} 43. Re5 {[%emt 0:00:11]} Rxe5 {[%emt 0:00:56]} 44. Rxe5 {[%emt 0:00:06]} Kf8 {[%emt 0:03:21]} 45. Kh2 {[%emt 0:00:35]} f6 {[%emt 0:01:35]} 46. Ra5 {[%emt 0:00:34]} g5 {[%emt 0:00:43]} 47. Ra7 {[%emt 0:00:17]} Kg8 {[%emt 0:00:13]} 48. g4 {[%emt 0:04:18]} Kh7 {[%emt 0:00:49]} 49. Kg3 {[%emt 0:01:15]} Rb4 {[%emt 0:00:02]} 50. Rc7 {[%emt 0:01:23]} Rb3+ {[%emt 0:00:15]} 51. Kg2 {[%emt 0:00:11]} Kh6 {[%emt 0:00:01]} 52. Ra7 {[%emt 0:01:59]} Kg6 {[%emt 0:00:19]} 53. Rc7 {[%emt 0:00:34]} Rb2+ {[%emt 0:00:02]} 54. Kg3 {[%emt 0:00:24]} Rb3+ {[%emt 0:00:02]} 55. Kg2 {[%emt 0:00:10]} Kh7 {[%emt 0:00:23]} 56. Ra7 {[%emt 0:00:41]} Rb8 {[%emt 0:00:27]} 57. Kg3 {[%emt 0:00:39]} Kg8 {[%emt 0:00:32]} 58. Ra6 {[%emt 0:02:14]} Rb7 {[%emt 0:00:10]} 59. Ra3 {[%emt 0:02:44]} Kf7 {[%emt 0:02:34]} 60. h4 {[%emt 0:00:56]} gxh4+ {[%emt 0:00:43]} 61. Kxh4 {[%emt 0:00:07]} Rb5 {[%emt 0:00:33]} 62. Ra6 {[%emt 0:01:09]} Kg6 {[%emt 0:00:29]} 63. Kg3 {[%emt 0:03:13]} Kg5 {[%emt 0:02:04]} 64. Ra3 {[%emt 0:00:16]} Re5 {[%emt 0:01:17]} 65. Rb3 {[%emt 0:02:29]} Re4 {[%emt 0:00:15]} 66. Rb5+ {[%emt 0:00:08]} Re5 {[%emt 0:00:02]} 67. Rb3 {[%emt 0:00:12]} Ra5 {[%emt 0:01:02]} 68. Rc3 {[%emt 0:01:08]} Ra4 {[%emt 0:01:00]} 69. Rc5+ {[%emt 0:00:15]} Kg6 {[%emt 0:00:01]} 70. Rb5 {[%emt 0:00:29]} Ra3+ {[%emt 0:00:21]} 71. Kf4 {[%emt 0:00:26]} Ra4+ {[%emt 0:00:17]} 72. Kg3 {[%emt 0:00:09]} Re4 {[%emt 0:00:04]} 73. Rb7 {[%emt 0:01:35]} Kh6 {[%emt 0:00:27]} 74. Rb6 {[%emt 0:00:15]} Kg5 {[%emt 0:00:05]} 75. Rb5+ {[%emt 0:00:10]} Re5 {[%emt 0:00:01]} 76. Rb3 {[%emt 0:00:17]} g6 {[%emt 0:00:02]} 77. Ra3 {[%emt 0:00:28]} Rb5 {[%emt 0:00:06]} 78. Rc3 {[%emt 0:00:49]} f5 {[%emt 0:00:17]} 79. gxf5 {[%emt 0:00:11]} gxf5 {[%emt 0:00:06]} 80. Rc4 {[%emt 0:00:11]} Rb3+ {[%emt 0:00:06]} 81. Kf2 {[%emt 0:00:37]} f4 {[%emt 0:00:21]} 82. Rc8 {[%emt 0:00:12]} Rb2+ {[%emt 0:00:26]} 83. Kf3 {[%emt 0:00:07]} 1/2-1/2

[Event "Czech Youth U16 Boys 2024"]
[Site "Kouty nad Desnou"]
[Date "2024.03.12"]
[Round "5.3"]
[White "Juracak, David"]
[Black "Davidek, Zdenek"]
[Result "1-0"]
[ECO "C55"]
[WhiteElo "1944"]
[BlackElo "2135"]
[Annotator "RC"]
[PlyCount "135"]
[EventDate "2024.03.10"]
[EventType "swiss"]
[EventCountry "CZE"]
[SourceTitle "playchess.com"]
[Source "ChessBase"]
[SourceQuality "1"]
[TimeControl "40/5400+30:1800+30"]

1. e4 {[%emt 0:00:05]} e5 {[%emt 0:00:16]} 2. Nf3 {[%emt 0:00:27]} Nc6 {[%emt 0:00:11]} 3. Bc4 {[%emt 0:00:31]} Nf6 {[%emt 0:00:07]} 4. d3 {[%emt 0:00:59]} Be7 {[%emt 0:00:21]} 5. O-O {[%emt 0:01:30]} O-O {[%emt 0:00:07]} 6. Nc3 {[%emt 0:02:43]} d6 {[%emt 0:00:14]} 7. a4 {[%emt 0:12:19]} Nd7 {[%emt 0:03:00]} 8. Be3 {[%emt 0:02:07]} Kh8 {[%emt 0:22:11]} 9. Nd5 {[%emt 0:05:57]} Nb6 {[%emt 0:02:06]} 10. Bb3 {[%emt 0:04:12]} f5 {[%emt 0:08:30]} 11. Nxe7 {[%emt 0:03:48]} Qxe7 {[%emt 0:00:35]} 12. Ng5 {[%emt 0:00:46]} Qe8 {[%emt 0:23:39]} 13. a5 {[%emt 0:01:37]} f4 {[%emt 0:07:21]} 14. axb6 {[%emt 0:01:06]} fxe3 {[%emt 0:01:23]} 15. fxe3 {[%emt 0:00:12]} Rxf1+ {[%emt 0:01:37]} 16. Qxf1 {[%emt 0:00:07]} h6 {[%emt 0:01:29]} 17. Nf7+ {[%emt 0:00:16]} Kh7 {[%emt 0:00:07]} 18. bxc7 {[%emt 0:01:07]} Qe7 {[%emt 0:02:39]} 19. Qf3 {[%emt 0:01:23]} Be6 {[%emt 0:01:22]} 20. Bxe6 {[%emt 0:00:14]} Qxe6 {[%emt 0:00:01]} 21. Qf5+ {[%emt 0:00:11]} Qxf5 {[%emt 0:00:09]} 22. exf5 {[%emt 0:00:04]} Rc8 {[%emt 0:00:25]} 23. Nxd6 {[%emt 0:00:45]} Rxc7 {[%emt 0:00:01]} 24. Ra4 {[%emt 0:03:59]} Rd7 {[%emt 0:04:23]} 25. Ne4 {[%emt 0:00:38]} b5 {[%emt 0:01:27]} 26. Ra3 {[%emt 0:01:45]} Nb4 {[%emt 0:04:35]} 27. Rc3 {[%emt 0:02:57]} Nd5 {[%emt 0:00:04]} 28. Rc5 {[%emt 0:00:41]} Nxe3 {[%emt 0:00:07]} 29. Rxe5 {[%emt 0:02:48]} Nxc2 {[%emt 0:00:37]} 30. f6 {[%emt 0:00:33]} Kg6 {[%emt 0:03:23]} 31. fxg7 {[%emt 0:01:47]} Kxg7 {[%emt 0:00:09]} 32. Rxb5 {[%emt 0:01:13]} Rxd3 {[%emt 0:00:10]} 33. Rb7+ {[%emt 0:00:25]} Kg6 {[%emt 0:00:13]} 34. Rxa7 {[%emt 0:00:42]} Rb3 {[%emt 0:02:38]} 35. Ra6+ {[%emt 0:03:38]} Kf5 {[%emt 0:02:24]} 36. Ng3+ {[%emt 0:01:22]} Kg5 {[%emt 0:00:04]} 37. Ra5+ {[%emt 0:00:53]} Kg6 {[%emt 0:00:17]} 38. Ra6+ {[%emt 0:03:35]} Kg5 {[%emt 0:00:30]} 39. Ne4+ {[%emt 0:01:49]} Kf5 {[%emt 0:00:13]} 40. Nd6+ {[%emt 0:00:35]} Ke5 {[%emt 0:10:14]} 41. Rb6 {[%emt 0:30:41]} Rd3 {[%emt 0:01:33]} 42. Nf7+ {[%emt 0:00:00]} Ke4 {[%emt 0:01:40]} 43. Re6+ {[%emt 0:00:00]} Kf5 {[%emt 0:06:14]} 44. Rd6 {[%emt 0:00:00]} Nd4 {[%emt 0:04:07]} 45. h3 {[%emt 0:00:00]} h5 {[%emt 0:03:13]} 46. b4 {[%emt 0:00:00]} Kf4 {[%emt 0:00:40]} 47. Rf6+ {[%emt 0:00:00]} Kg3 {[%emt 0:00:27]} 48. Rg6+ {[%emt 0:00:00]} Kf4 {[%emt 0:00:10]} 49. Rf6+ {[%emt 0:00:00]} Kg3 {[%emt 0:00:04]} 50. Rg6+ {[%emt 0:00:00]} Kf4 {[%emt 0:00:04]} 51. Kh2 {[%emt 0:00:00]} Rb3 {[%emt 0:02:30]} 52. Rf6+ {[%emt 0:00:00]} Ke4 {[%emt 0:00:20]} 53. Rh6 {[%emt 0:00:00]} Rxb4 {[%emt 0:02:26]} 54. Rxh5 {[%emt 0:00:00]} Rb2 {[%emt 0:00:52]} 55. Nd6+ {[%emt 0:00:00]} Kd3 {[%emt 0:00:10]} 56. Rd5 {[%emt 0:00:00]} Kc3 {[%emt 0:00:09]} 57. h4 {[%emt 0:00:00]} Ne6 {[%emt 0:01:02]} 58. Ne4+ {[%emt 0:00:00]} Kc4 {[%emt 0:00:20]} 59. Rd2 {[%emt 0:00:00]} Rb8 {[%emt 0:00:27]} 60. g3 {[%emt 0:00:00]} Nd4 {[%emt 0:00:39]} 61. Kg2 {[%emt 0:00:00]} Rh8 {[%emt 0:00:45]} 62. Ng5 {[%emt 0:00:27]} Kc3 {[%emt 0:01:14]} 63. Rd1 {[%emt 0:00:29]} Nf5 {[%emt 0:01:02]} 64. Kh3 {[%emt 0:00:13]} Kc4 {[%emt 0:00:56]} 65. Nf7 {[%emt 0:00:23]} Rg8 {[%emt 0:03:13]} 66. Nd6+ {[%emt 0:00:08]} Nxd6 {[%emt 0:00:03]} 67. Rxd6 {[%emt 0:00:08]} Kc5 {[%emt 0:00:01]} 68. Rd1 {[%emt 0:00:09]} 1-0

[Event "Czech Youth U16 Boys 2024"]
[Site "Kouty nad Desnou"]
[Date "2024.03.12"]
[Round "5.4"]
[White "Setina, Vaclav"]
[Black "Prazak, Daniel"]
[Result "0-1"]
[ECO "D45"]
[WhiteElo "2024"]
[BlackElo "2223"]
[Annotator "RC"]
[PlyCount "82"]
[EventDate "2024.03.10"]
[EventType "swiss"]
[EventCountry "CZE"]
[SourceTitle "playchess.com"]
[Source "ChessBase"]
[SourceQuality "1"]
[TimeControl "40/5400+30:1800+30"]

1. d4 {[%emt 0:00:04]} Nf6 {[%emt 0:00:58]} 2. c4 {[%emt 0:00:04]} c6 {[%emt 0:00:23]} 3. Nc3 {[%emt 0:00:15]} d5 {[%emt 0:00:08]} 4. Nf3 {[%emt 0:00:07]} e6 {[%emt 0:00:38]} 5. e3 {[%emt 0:00:07]} Nbd7 {[%emt 0:00:43]} 6. Qc2 {[%emt 0:01:23]} Bd6 {[%emt 0:02:15]} 7. b3 {[%emt 0:00:53]} O-O {[%emt 0:11:58]} 8. Bb2 {[%emt 0:01:08]} b6 {[%emt 0:02:21]} 9. Be2 {[%emt 0:00:53]} Bb7 {[%emt 0:02:56]} 10. O-O {[%emt 0:00:45]} Qe7 {[%emt 0:01:08]} 11. Rad1 {[%emt 0:00:51]} Rac8 {[%emt 0:01:08]} 12. Rfe1 {[%emt 0:00:33]} Bb4 {[%emt 0:08:19]} 13. a3 {[%emt 0:01:10]} Bd6 {[%emt 0:08:34]} 14. e4 {[%emt 0:10:13]} dxe4 {[%emt 0:04:05]} 15. Nxe4 {[%emt 0:00:09]} Nxe4 {[%emt 0:00:41]} 16. Qxe4 {[%emt 0:00:07]} Nf6 {[%emt 0:00:44]} 17. Qc2 {[%emt 0:00:54]} Rfd8 {[%emt 0:05:28]} 18. Ne5 {[%emt 0:24:57]} Bxa3 {[%emt 0:10:11]} 19. Bxa3 {[%emt 0:00:07]} Qxa3 {[%emt 0:00:03]} 20. c5 {[%emt 0:00:13]} Qb4 {[%emt 0:06:05]} 21. Qc4 Qxc4 {[%emt 0:08:14]} 22. Nxc4 {[%emt 0:14:54]} Ba6 {[%emt 0:01:05]} 23. cxb6 {[%emt 0:00:14]} Bxc4 {[%emt 0:00:22]} 24. b7 {[%emt 0:00:20]} Rb8 {[%emt 0:00:38]} 25. bxc4 {[%emt 0:03:24]} Rxb7 {[%emt 0:00:05]} 26. Bf3 {[%emt 0:04:16]} Rb4 {[%emt 0:09:20]} 27. Ra1 {[%emt 0:11:30]} Rxc4 {[%emt 0:02:00]} 28. Rxa7 {[%emt 0:00:03]} g6 {[%emt 0:00:55]} 29. Rc7 {[%emt 0:00:45]} Nd5 {[%emt 0:00:26]} 30. Bxd5 {[%emt 0:01:31]} Rxd5 {[%emt 0:00:09]} 31. g3 {[%emt 0:00:42]} Rdxd4 {[%emt 0:00:31]} 32. Ra1 {[%emt 0:01:26]} Rd5 {[%emt 0:02:14]} 33. Ra8+ {[%emt 0:00:43]} Kg7 {[%emt 0:00:15]} 34. Ra6 {[%emt 0:00:16]} Rdc5 {[%emt 0:00:37]} 35. Raa7 {[%emt 0:04:50]} Rf5 {[%emt 0:00:08]} 36. Ra6 {[%emt 0:00:07]} Rc1+ {[%emt 0:00:20]} 37. Kg2 {[%emt 0:00:10]} Rc2 {[%emt 0:00:05]} 38. Raxc6 {[%emt 0:00:22]} Rfxf2+ {[%emt 0:00:07]} 39. Kg1 {[%emt 0:00:27]} Rg2+ {[%emt 0:00:05]} 40. Kf1 {[%emt 0:00:04]} Rxc6 {[%emt 0:00:10]} 41. Rxc6 {[%emt 0:30:49]} Rxh2 {[%emt 0:30:08]} 0-1

[Event "Czech Youth U16 Boys 2024"]
[Site "Kouty nad Desnou"]
[Date "2024.03.12"]
[Round "5.5"]
[White "Hozda, Max"]
[Black "Zrubek, Dan"]
[Result "1/2-1/2"]
[ECO "D79"]
[WhiteElo "2032"]
[BlackElo "1882"]
[Annotator "RC"]
[PlyCount "61"]
[EventDate "2024.03.10"]
[EventType "swiss"]
[EventCountry "CZE"]
[SourceTitle "playchess.com"]
[Source "ChessBase"]
[SourceQuality "1"]
[TimeControl "40/5400+30:1800+30"]

1. d4 {[%emt 0:00:09]} Nf6 {[%emt 0:00:23]} 2. c4 {[%emt 0:00:21]} g6 {[%emt 0:00:11]} 3. Nf3 {[%emt 0:00:34]} Bg7 {[%emt 0:01:19]} 4. g3 {[%emt 0:00:25]} c6 {[%emt 0:03:07]} 5. Bg2 {[%emt 0:00:43]} O-O {[%emt 0:01:21]} 6. O-O {[%emt 0:00:26]} d5 {[%emt 0:01:14]} 7. cxd5 {[%emt 0:02:10]} cxd5 {[%emt 0:00:35]} 8. Nc3 {[%emt 0:00:17]} Nc6 {[%emt 0:08:24]} 9. b3 {[%emt 0:23:10]} Ne4 {[%emt 0:08:58]} 10. Bb2 {[%emt 0:01:48]} Bg4 {[%emt 0:05:31]} 11. e3 {[%emt 0:06:20]} Ng5 {[%emt 0:10:21]} 12. h4 {[%emt 0:05:41]} Nxf3+ {[%emt 0:00:36]} 13. Bxf3 {[%emt 0:00:12]} Bxf3 {[%emt 0:00:22]} 14. Qxf3 {[%emt 0:00:05]} e6 {[%emt 0:00:37]} 15. Kg2 {[%emt 0:02:26]} h5 {[%emt 0:02:24]} 16. Ba3 {[%emt 0:03:20]} Re8 {[%emt 0:01:21]} 17. Rac1 {[%emt 0:03:00]} Qa5 {[%emt 0:03:17]} 18. Bd6 {[%emt 0:00:59]} Rad8 {[%emt 0:03:44]} 19. Bf4 {[%emt 0:01:46]} e5 {[%emt 0:04:58]} 20. dxe5 {[%emt 0:07:29]} Nxe5 {[%emt 0:01:41]} 21. Bxe5 {[%emt 0:08:25]} Bxe5 {[%emt 0:06:54]} 22. b4 {[%emt 0:01:07]} Qxb4 {[%emt 0:04:56]} 23. Nxd5 {[%emt 0:00:11]} Qg4 {[%emt 0:02:30]} 24. Nf6+ {[%emt 0:03:54]} Bxf6 {[%emt 0:00:13]} 25. Qxf6 {[%emt 0:00:06]} Qe6 {[%emt 0:04:31]} 26. Qxe6 {[%emt 0:07:58]} Rxe6 {[%emt 0:00:26]} 27. Rfd1 {[%emt 0:00:17]} Red6 {[%emt 0:01:55]} 28. Rxd6 {[%emt 0:01:09]} Rxd6 {[%emt 0:00:04]} 29. Rc2 {[%emt 0:00:32]} Kg7 {[%emt 0:03:46]} 30. Kf3 {[%emt 0:00:46]} Rd7 {[%emt 0:03:57]} 31. Kf4 {[%emt 0:00:37]} 1/2-1/2

[Event "Czech Youth U16 Boys 2024"]
[Site "Kouty nad Desnou"]
[Date "2024.03.12"]
[Round "5.6"]
[White "Mikolas, Petr"]
[Black "Vysinsky, Otakar"]
[Result "0-1"]
[ECO "B32"]
[WhiteElo "1957"]
[BlackElo "1882"]
[Annotator "RC"]
[PlyCount "132"]
[EventDate "2024.03.10"]
[EventType "swiss"]
[EventCountry "CZE"]
[SourceTitle "playchess.com"]
[Source "ChessBase"]
[SourceQuality "1"]
[TimeControl "40/5400+30:1800+30"]

1. e4 {[%emt 0:00:03]} c5 {[%emt 0:00:09]} 2. Nf3 {[%emt 0:00:05]} Nc6 {[%emt 0:00:06]} 3. d4 {[%emt 0:01:19]} cxd4 {[%emt 0:00:05]} 4. Nxd4 {[%emt 0:00:02]} e5 {[%emt 0:00:19]} 5. Nb5 {[%emt 0:00:20]} d6 {[%emt 0:00:16]} 6. N1c3 {[%emt 0:00:19]} a6 {[%emt 0:01:19]} 7. Na3 {[%emt 0:00:06]} b5 {[%emt 0:00:55]} 8. Nd5 {[%emt 0:00:10]} Nce7 {[%emt 0:01:59]} 9. c4 {[%emt 0:14:07]} Nxd5 {[%emt 0:11:08]} 10. Qxd5 {[%emt 0:10:55]} Be6 {[%emt 0:07:01]} 11. Qc6+ {[%emt 0:03:27]} Bd7 {[%emt 0:00:20]} 12. Qb7 {[%emt 0:00:11]} bxc4 {[%emt 0:09:39]} 13. Bxc4 {[%emt 0:03:17]} Nf6 {[%emt 0:03:30]} 14. O-O {[%emt 0:12:31]} Be7 {[%emt 0:06:43]} 15. Be3 {[%emt 0:09:12]} O-O {[%emt 0:05:39]} 16. f3 {[%emt 0:05:13]} Qa5 {[%emt 0:08:50]} 17. Bd5 {[%emt 0:06:19]} Rab8 {[%emt 0:07:47]} 18. Qa7 {[%emt 0:00:05]} Qb4 {[%emt 0:08:57]} 19. Rab1 {[%emt 0:07:02]} a5 {[%emt 0:05:58]} 20. Rfd1 {[%emt 0:03:54]} Rfc8 {[%emt 0:02:25]} 21. Bd2 {[%emt 0:03:48]} Qc5+ {[%emt 0:03:51]} 22. Qxc5 {[%emt 0:00:06]} Rxc5 {[%emt 0:00:12]} 23. Be3 {[%emt 0:00:44]} Rc7 {[%emt 0:00:39]} 24. g4 {[%emt 0:04:13]} Kf8 {[%emt 0:02:12]} 25. Kf2 {[%emt 0:08:23]} Nxd5 {[%emt 0:02:31]} 26. exd5 {[%emt 0:00:06]} f5 {[%emt 0:01:45]} 27. h3 {[%emt 0:00:11]} f4 {[%emt 0:01:22]} 28. Bd2 {[%emt 0:00:42]} Rc5 {[%emt 0:01:45]} 29. Bc3 {[%emt 0:00:11]} Bd8 {[%emt 0:01:20]} 30. Ke2 {[%emt 0:05:56]} Ke8 {[%emt 0:01:40]} 31. Rbc1 {[%emt 0:00:38]} Ba4 {[%emt 0:01:52]} 32. b3 {[%emt 0:01:21]} Bb5+ {[%emt 0:00:45]} 33. Kf2 {[%emt 0:00:05]} Ba6 {[%emt 0:00:55]} 34. Bb2 {[%emt 0:01:03]} Rbc8 {[%emt 0:00:26]} 35. Rxc5 {[%emt 0:01:03]} Rxc5 {[%emt 0:00:01]} 36. Rd2 {[%emt 0:00:17]} Kd7 {[%emt 0:01:50]} 37. Nb1 {[%emt 0:00:17]} Bb6 {[%emt 0:00:53]} 38. Kg2 {[%emt 0:00:13]} Rc8 {[%emt 0:01:04]} 39. Nc3 {[%emt 0:01:23]} Be3 {[%emt 0:00:36]} 40. Rd1 {[%emt 0:00:10]} Bd4 {[%emt 0:00:46]} 41. Rc1 {[%emt 0:02:47]} Bb7 {[%emt 0:03:23]} 42. h4 {[%emt 0:03:37]} Rc5 {[%emt 0:04:25]} 43. Kf1 {[%emt 0:08:24]} Bxd5 {[%emt 0:08:56]} 44. Nxd5 {[%emt 0:01:29]} Rxd5 {[%emt 0:00:02]} 45. Bxd4 {[%emt 0:01:18]} Rxd4 {[%emt 0:00:08]} 46. Ke2 {[%emt 0:00:05]} a4 {[%emt 0:03:41]} 47. Rc3 {[%emt 0:02:39]} Rb4 {[%emt 0:04:35]} 48. Rd3 {[%emt 0:01:50]} Ke6 {[%emt 0:01:27]} 49. Rc3 {[%emt 0:00:18]} axb3 {[%emt 0:00:58]} 50. axb3 {[%emt 0:00:01]} Rb7 {[%emt 0:00:39]} 51. Kd2 {[%emt 0:02:45]} Kd7 {[%emt 0:02:02]} 52. Rd3 {[%emt 0:00:27]} Rb5 {[%emt 0:00:33]} 53. Kc3 {[%emt 0:01:22]} Kc6 {[%emt 0:00:23]} 54. b4 {[%emt 0:00:30]} Rd5 {[%emt 0:01:30]} 55. b5+ {[%emt 0:01:03]} Rxb5 {[%emt 0:01:08]} 56. Kc4 {[%emt 0:00:48]} d5+ {[%emt 0:01:21]} 57. Kc3 {[%emt 0:00:05]} Kc5 {[%emt 0:00:41]} 58. Rd2 {[%emt 0:00:20]} Ra5 {[%emt 0:01:31]} 59. Kb3 {[%emt 0:00:39]} Rb5+ {[%emt 0:01:06]} 60. Kc3 {[%emt 0:00:07]} e4 {[%emt 0:01:54]} 61. fxe4 {[%emt 0:00:03]} dxe4 {[%emt 0:00:02]} 62. Rd7 {[%emt 0:00:19]} f3 {[%emt 0:00:46]} 63. Kd2 {[%emt 0:00:18]} Rb2+ {[%emt 0:00:34]} 64. Ke1 {[%emt 0:00:15]} e3 {[%emt 0:00:37]} 65. Rc7+ {[%emt 0:00:20]} Kd6 {[%emt 0:00:15]} 66. Rc1 {[%emt 0:00:05]} Rh2 {[%emt 0:00:24]} 0-1

[Event "Czech Youth U16 Boys 2024"]
[Site "Kouty nad Desnou"]
[Date "2024.03.12"]
[Round "5.7"]
[White "Zemek, Antonin"]
[Black "Andrle, Filip"]
[Result "0-1"]
[ECO "A04"]
[WhiteElo "1870"]
[BlackElo "1943"]
[Annotator "RC"]
[PlyCount "52"]
[EventDate "2024.03.10"]
[EventType "swiss"]
[EventCountry "CZE"]
[SourceTitle "playchess.com"]
[Source "ChessBase"]
[SourceQuality "1"]
[TimeControl "40/5400+30:1800+30"]

1. Nf3 {[%emt 0:00:15]} e6 {[%emt 0:00:10]} 2. b3 {[%emt 0:04:15]} d5 {[%emt 0:01:30]} 3. c4 {[%emt 0:01:01]} d4 {[%emt 0:00:29]} 4. d3 {[%emt 0:03:35]} c5 {[%emt 0:02:49]} 5. g3 {[%emt 0:02:59]} Nc6 {[%emt 0:02:40]} 6. Bg2 {[%emt 0:02:33]} Nf6 {[%emt 0:01:14]} 7. O-O {[%emt 0:02:33]} Bd6 {[%emt 0:02:38]} 8. e4 {[%emt 0:02:27]} O-O {[%emt 0:05:24]} 9. Kh1 {[%emt 0:04:09]} Ne8 {[%emt 0:09:13]} 10. Ng1 {[%emt 0:05:35]} e5 {[%emt 0:06:04]} 11. f4 {[%emt 0:02:13]} f5 {[%emt 0:05:50]} 12. exf5 {[%emt 0:08:21]} exf4 {[%emt 0:03:07]} 13. g4 {[%emt 0:06:33]} g5 {[%emt 0:07:57]} 14. Bxc6 {[%emt 0:15:05]} bxc6 {[%emt 0:01:00]} 15. Nd2 {[%emt 0:00:44]} h5 {[%emt 0:16:00]} 16. h3 {[%emt 0:01:38]} hxg4 {[%emt 0:01:26]} 17. hxg4 {[%emt 0:00:09]} Kg7 {[%emt 0:00:52]} 18. Ne4 {[%emt 0:03:28]} Rh8+ {[%emt 0:01:23]} 19. Kg2 {[%emt 0:01:24]} Rh4 {[%emt 0:01:46]} 20. Nh3 {[%emt 0:03:23]} Nf6 {[%emt 0:03:44]} 21. Nef2 {[%emt 0:07:15]} Nd7 {[%emt 0:06:34]} 22. Ng1 {[%emt 0:09:48]} Ne5 {[%emt 0:10:51]} 23. Nf3 {[%emt 0:00:17]} Qh8 {[%emt 0:04:28]} 24. Rh1 {[%emt 0:01:08]} Rxh1 {[%emt 0:00:21]} 25. Nxh1 {[%emt 0:03:12]} Nxg4 {[%emt 0:00:47]} 26. Qg1 {[%emt 0:02:16]} Bxf5 {[%emt 0:01:20]} 0-1

[Event "Czech Youth U16 Boys 2024"]
[Site "Kouty nad Desnou"]
[Date "2024.03.12"]
[Round "5.8"]
[White "Ulcak, Michael"]
[Black "Buchtova, Viktorie"]
[Result "1-0"]
[ECO "B24"]
[WhiteElo "1929"]
[BlackElo "1874"]
[Annotator "RC"]
[PlyCount "30"]
[EventDate "2024.03.10"]
[EventType "swiss"]
[EventCountry "CZE"]
[SourceTitle "playchess.com"]
[Source "ChessBase"]
[SourceQuality "1"]
[TimeControl "40/5400+30:1800+30"]

1. e4 {[%emt 0:00:12]} c5 {[%emt 0:00:04]} 2. Nc3 {[%emt 0:00:13]} Nc6 {[%emt 0:00:56]} 3. Bb5 {[%emt 0:00:08]} Nd4 {[%emt 0:00:41]} 4. Bc4 {[%emt 0:00:12]} e6 {[%emt 0:00:53]} 5. Nge2 {[%emt 0:00:56]} Nf6 {[%emt 0:01:07]} 6. O-O {[%emt 0:01:05]} d5 {[%emt 0:01:08]} 7. exd5 {[%emt 0:00:33]} exd5 {[%emt 0:00:08]} 8. Nxd5 {[%emt 0:00:16]} Nxd5 {[%emt 0:05:46]} 9. Nxd4 {[%emt 0:00:33]} cxd4 {[%emt 0:01:46]} 10. Qh5 {[%emt 0:00:21]} Be6 {[%emt 0:15:37]} 11. Re1 {[%emt 0:00:09]} Nf4 {[%emt 0:05:45]} 12. Bb5+ {[%emt 0:00:07]} Ke7 {[%emt 0:02:54]} 13. Qg5+ {[%emt 0:00:06]} f6 {[%emt 0:00:24]} 14. Qxf4 {[%emt 0:00:07]} Kf7 {[%emt 0:07:29]} 15. d3 {[%emt 0:22:18]} a6 {[%emt 0:17:56]} 1-0